{"text_format":"1","workbook":"xlsx","n_sheets":3,"sheets":["ChristmasCards","ThanksgivingCards","MasterList"],"not_rendered":{"charts":0,"images":0,"macros":1,"external_links":0,"defined_names":3,"comments":0,"pivot_tables":0},"unopened":[],"bounds":{"document_bytes":16777216,"sheet_cells":100000,"rows_first":2000,"rows_last":500,"rows_between":2000,"halvings":0,"cell_chars":16384,"cell_head_chars":4096},"cells_cut":0,"cells_raw":0,"read":"whole","date_system":"1900"}

{"sheet":"ChristmasCards","index":0,"n_rows":21,"n_cols":14,"rows_kept":21,"cut":false,"hidden":false,"merged":[[0,3,0,13]]}
[null,"Active Year",2023]
["Last","Name","AddressL1","City","State","Zip","2023","2024","2025","2026","2027","2028","2029","2030"]
[" Johnston","Bill Johnston","169 Southern Lane","Tazewell","TN",37879,"✔"]
[" Sharkey","Carol L Sharkey","106 Crickett Court","Saint Peters","MO",63376,"✔"]
[" Lambert","Charlie & Angela Lambert","PO Box 6775","Maryville","TN",37802,"✔"]
[" Walker","Donna B Walker","402 S Washington St","Maryville","TN",37804,"✔"]
[" Stark","Erica Stark","7003 Pearl Rd #17","Middleburg Hts","OH",44130,"✔"]
[" Kautz","Evonne Kautz","12568 Kingston Pike","Knoxville","TN",37934,"✔"]
[" Hyde","Gary Hyde","415 S White St","Athens","TN",37371,"✔"]
[" Baker","Greg Baker","1713 E Broadway Ave","Maryville","TN",37804,"✔"]
[" Walston","J Wayne Walston","3882 Jill St NE","Cleveland","TN",37312,"✔"]
[" Sikes","Kassi Sikes","5327 W. Hillsdale Ave","Visalia","CA",93291]
[" Miller","Marilyn Miller","123 West Washington Ave","Athens","TN",37363,"✔"]
[" Dunn","Melissa Dunn","9724 Kingston Pike Suite 204","Knoxville","TN",37922,"✔"]
[" Lermer","Michael & Barbara Lermer","5530 Turtle Crossing Loop","Tampa","FL",33625,"✔"]
[" Simonetta-Lee","Missy Simonetta-Lee","130 June Dr","Cocoa Beach","Fl",32931,"✔"]
[" Pelton","Rhiannon Pelton","4412 Brainerd Road","Chattanooga","TN",37411,"✔"]
[" Heredia","Stephanie Heredia","5706 S MacDill Ave Ste 104","Tampa","FL",33611,"✔"]
[" Carico","Tracy Carico","609 W Lamar Alexander Pkwy","Maryville","TN",37801,"✔"]
[" Stone","David & Suzanne Stone","25115 Avenue Stanford, Suite 107","Valencia","CA",91355]
[" Brugman","Lisa Brugman","1506 Hacienda Rd","La Habra Heights","CA","90631-8105"]

{"sheet":"ThanksgivingCards","index":1,"n_rows":21,"n_cols":14,"rows_kept":21,"cut":false,"hidden":false,"merged":[[0,3,0,13]]}
[null,"Active Year",2024]
["Last Name","Name","AddressL1","City","State","Zip","2023","2024","2025","2026","2027","2028","2029","2030"]
[" Johnston","Bill Johnston","169 Southern Lane","Tazewell","TN",37879,null,"✔"]
[" Sharkey","Carol L Sharkey","106 Crickett Court","Saint Peters","MO",63376,null,"✔"]
[" Lambert","Charlie & Angela Lambert","PO Box 6775","Maryville","TN",37802,null,"✔"]
[" Walker","Donna B Walker","402 S Washington St","Maryville","TN",37804]
[" Stark","Erica Stark","7003 Pearl Rd #17","Middleburg Hts","OH",44130,null,"✔"]
[" Kautz","Evonne Kautz","12568 Kingston Pike","Knoxville","TN",37934,null,"✔"]
[" Hyde","Gary Hyde","415 S White St","Athens","TN",37371]
[" Baker","Greg Baker","1713 E Broadway Ave","Maryville","TN",37804]
[" Walston","J Wayne Walston","3882 Jill St NE","Cleveland","TN",37312,null,"✔"]
[" Sikes","Kassi Sikes","5327 W. Hillsdale Ave","Visalia","CA",93291,null,"✔"]
[" Miller","Marilyn Miller","123 West Washington Ave","Athens","TN",37363,null,"✔"]
[" Dunn","Melissa Dunn","9724 Kingston Pike Suite 204","Knoxville","TN",37922,null,"✔"]
[" Lermer","Michael & Barbara Lermer","5530 Turtle Crossing Loop","Tampa","FL",33625]
[" Simonetta-Lee","Missy Simonetta-Lee","130 June Dr","Cocoa Beach","Fl",32931,null,"✔"]
[" Pelton","Rhiannon Pelton","4412 Brainerd Road","Chattanooga","TN",37411]
[" Heredia","Stephanie Heredia","5706 S MacDill Ave Ste 104","Tampa","FL",33611,null,"✔"]
[" Carico","Tracy Carico","609 W Lamar Alexander Pkwy","Maryville","TN",37801]
[" Stone","David & Suzanne Stone","25115 Avenue Stanford, Suite 107","Valencia","CA",91355,null,"✔"]
[" Brugman","Lisa Brugman","1506 Hacienda Rd","La Habra Heights","CA","90631-8105",null,"✔"]

{"sheet":"MasterList","index":2,"n_rows":20,"n_cols":15,"rows_kept":20,"cut":false,"hidden":false,"merged":[]}
["Last Name","Name","AddressL1","City","State","Zip"]
[{"$f":"MID(Table3[[#This Row],[Name]],FIND(\"/\", SUBSTITUTE(Table3[[#This Row],[Name]],\" \",\"/\", LEN(Table3[[#This Row],[Name]])-LEN(SUBSTITUTE(Table3[[#This Row],[Name]],\" \",\"\")))),100)","v":" Johnston"},"Bill Johnston","169 Southern Lane","Tazewell","TN",37879,null,null,null,{"$f":"MID(Table3[[#This Row],[Name]],FIND(\"/\", SUBSTITUTE(Table3[[#This Row],[Name]],\" \",\"/\", LEN(Table3[[#This Row],[Name]])-LEN(SUBSTITUTE(Table3[[#This Row],[Name]],\" \",\"\")))),100)","v":" Johnston"},"Bill Johnston","169 Southern Lane","Tazewell","TN",37879]
[{"$f":"MID(Table3[[#This Row],[Name]],FIND(\"/\", SUBSTITUTE(Table3[[#This Row],[Name]],\" \",\"/\", LEN(Table3[[#This Row],[Name]])-LEN(SUBSTITUTE(Table3[[#This Row],[Name]],\" \",\"\")))),100)","v":" Sharkey"},"Carol L Sharkey","106 Crickett Court","Saint Peters","MO",63376,null,null,null,{"$f":"MID(Table3[[#This Row],[Name]],FIND(\"/\", SUBSTITUTE(Table3[[#This Row],[Name]],\" \",\"/\", LEN(Table3[[#This Row],[Name]])-LEN(SUBSTITUTE(Table3[[#This Row],[Name]],\" \",\"\")))),100)","v":" Sharkey"},"Carol L Sharkey","106 Crickett Court","Saint Peters","MO",63376]
[{"$f":"MID(Table3[[#This Row],[Name]],FIND(\"/\", SUBSTITUTE(Table3[[#This Row],[Name]],\" \",\"/\", LEN(Table3[[#This Row],[Name]])-LEN(SUBSTITUTE(Table3[[#This Row],[Name]],\" \",\"\")))),100)","v":" Lambert"},"Charlie & Angela Lambert","PO Box 6775","Maryville","TN",37802,null,null,null,{"$f":"MID(Table3[[#This Row],[Name]],FIND(\"/\", SUBSTITUTE(Table3[[#This Row],[Name]],\" \",\"/\", LEN(Table3[[#This Row],[Name]])-LEN(SUBSTITUTE(Table3[[#This Row],[Name]],\" \",\"\")))),100)","v":" Lambert"},"Charlie & Angela Lambert","PO Box 6775","Maryville","TN",37802]
[{"$f":"MID(Table3[[#This Row],[Name]],FIND(\"/\", SUBSTITUTE(Table3[[#This Row],[Name]],\" \",\"/\", LEN(Table3[[#This Row],[Name]])-LEN(SUBSTITUTE(Table3[[#This Row],[Name]],\" \",\"\")))),100)","v":" Walker"},"Donna B Walker","402 S Washington St","Maryville","TN",37804,null,null,null,{"$f":"MID(Table3[[#This Row],[Name]],FIND(\"/\", SUBSTITUTE(Table3[[#This Row],[Name]],\" \",\"/\", LEN(Table3[[#This Row],[Name]])-LEN(SUBSTITUTE(Table3[[#This Row],[Name]],\" \",\"\")))),100)","v":" Walker"},"Donna B Walker","402 S Washington St","Maryville","TN",37804]
[{"$f":"MID(Table3[[#This Row],[Name]],FIND(\"/\", SUBSTITUTE(Table3[[#This Row],[Name]],\" \",\"/\", LEN(Table3[[#This Row],[Name]])-LEN(SUBSTITUTE(Table3[[#This Row],[Name]],\" \",\"\")))),100)","v":" Stark"},"Erica Stark","7003 Pearl Rd #17","Middleburg Hts","OH",44130,null,null,null,{"$f":"MID(Table3[[#This Row],[Name]],FIND(\"/\", SUBSTITUTE(Table3[[#This Row],[Name]],\" \",\"/\", LEN(Table3[[#This Row],[Name]])-LEN(SUBSTITUTE(Table3[[#This Row],[Name]],\" \",\"\")))),100)","v":" Stark"},"Erica Stark","7003 Pearl Rd #17","Middleburg Hts","OH",44130]
[{"$f":"MID(Table3[[#This Row],[Name]],FIND(\"/\", SUBSTITUTE(Table3[[#This Row],[Name]],\" \",\"/\", LEN(Table3[[#This Row],[Name]])-LEN(SUBSTITUTE(Table3[[#This Row],[Name]],\" \",\"\")))),100)","v":" Kautz"},"Evonne Kautz","12568 Kingston Pike","Knoxville","TN",37934,null,null,null,{"$f":"MID(Table3[[#This Row],[Name]],FIND(\"/\", SUBSTITUTE(Table3[[#This Row],[Name]],\" \",\"/\", LEN(Table3[[#This Row],[Name]])-LEN(SUBSTITUTE(Table3[[#This Row],[Name]],\" \",\"\")))),100)","v":" Kautz"},"Evonne Kautz","12568 Kingston Pike","Knoxville","TN",37934]
[{"$f":"MID(Table3[[#This Row],[Name]],FIND(\"/\", SUBSTITUTE(Table3[[#This Row],[Name]],\" \",\"/\", LEN(Table3[[#This Row],[Name]])-LEN(SUBSTITUTE(Table3[[#This Row],[Name]],\" \",\"\")))),100)","v":" Hyde"},"Gary Hyde","415 S White St","Athens","TN",37371,null,null,null,{"$f":"MID(Table3[[#This Row],[Name]],FIND(\"/\", SUBSTITUTE(Table3[[#This Row],[Name]],\" \",\"/\", LEN(Table3[[#This Row],[Name]])-LEN(SUBSTITUTE(Table3[[#This Row],[Name]],\" \",\"\")))),100)","v":" Hyde"},"Gary Hyde","415 S White St","Athens","TN",37371]
[{"$f":"MID(Table3[[#This Row],[Name]],FIND(\"/\", SUBSTITUTE(Table3[[#This Row],[Name]],\" \",\"/\", LEN(Table3[[#This Row],[Name]])-LEN(SUBSTITUTE(Table3[[#This Row],[Name]],\" \",\"\")))),100)","v":" Baker"},"Greg Baker","1713 E Broadway Ave","Maryville","TN",37804,null,null,null,{"$f":"MID(Table3[[#This Row],[Name]],FIND(\"/\", SUBSTITUTE(Table3[[#This Row],[Name]],\" \",\"/\", LEN(Table3[[#This Row],[Name]])-LEN(SUBSTITUTE(Table3[[#This Row],[Name]],\" \",\"\")))),100)","v":" Baker"},"Greg Baker","1713 E Broadway Ave","Maryville","TN",37804]
[{"$f":"MID(Table3[[#This Row],[Name]],FIND(\"/\", SUBSTITUTE(Table3[[#This Row],[Name]],\" \",\"/\", LEN(Table3[[#This Row],[Name]])-LEN(SUBSTITUTE(Table3[[#This Row],[Name]],\" \",\"\")))),100)","v":" Walston"},"J Wayne Walston","3882 Jill St NE","Cleveland","TN",37312,null,null,null,{"$f":"MID(Table3[[#This Row],[Name]],FIND(\"/\", SUBSTITUTE(Table3[[#This Row],[Name]],\" \",\"/\", LEN(Table3[[#This Row],[Name]])-LEN(SUBSTITUTE(Table3[[#This Row],[Name]],\" \",\"\")))),100)","v":" Walston"},"J Wayne Walston","3882 Jill St NE","Cleveland","TN",37312]
[{"$f":"MID(Table3[[#This Row],[Name]],FIND(\"/\", SUBSTITUTE(Table3[[#This Row],[Name]],\" \",\"/\", LEN(Table3[[#This Row],[Name]])-LEN(SUBSTITUTE(Table3[[#This Row],[Name]],\" \",\"\")))),100)","v":" Sikes"},"Kassi Sikes","5327 W. Hillsdale Ave","Visalia","CA",93291,null,null,null,{"$f":"MID(Table3[[#This Row],[Name]],FIND(\"/\", SUBSTITUTE(Table3[[#This Row],[Name]],\" \",\"/\", LEN(Table3[[#This Row],[Name]])-LEN(SUBSTITUTE(Table3[[#This Row],[Name]],\" \",\"\")))),100)","v":" Sikes"},"Kassi Sikes","5327 W. Hillsdale Ave","Visalia","CA",93291]
[{"$f":"MID(Table3[[#This Row],[Name]],FIND(\"/\", SUBSTITUTE(Table3[[#This Row],[Name]],\" \",\"/\", LEN(Table3[[#This Row],[Name]])-LEN(SUBSTITUTE(Table3[[#This Row],[Name]],\" \",\"\")))),100)","v":" Miller"},"Marilyn Miller","123 West Washington Ave","Athens","TN",37363,null,null,null,{"$f":"MID(Table3[[#This Row],[Name]],FIND(\"/\", SUBSTITUTE(Table3[[#This Row],[Name]],\" \",\"/\", LEN(Table3[[#This Row],[Name]])-LEN(SUBSTITUTE(Table3[[#This Row],[Name]],\" \",\"\")))),100)","v":" Miller"},"Marilyn Miller","123 West Washington Ave","Athens","TN",37363]
[{"$f":"MID(Table3[[#This Row],[Name]],FIND(\"/\", SUBSTITUTE(Table3[[#This Row],[Name]],\" \",\"/\", LEN(Table3[[#This Row],[Name]])-LEN(SUBSTITUTE(Table3[[#This Row],[Name]],\" \",\"\")))),100)","v":" Dunn"},"Melissa Dunn","9724 Kingston Pike Suite 204","Knoxville","TN",37922,null,null,null,{"$f":"MID(Table3[[#This Row],[Name]],FIND(\"/\", SUBSTITUTE(Table3[[#This Row],[Name]],\" \",\"/\", LEN(Table3[[#This Row],[Name]])-LEN(SUBSTITUTE(Table3[[#This Row],[Name]],\" \",\"\")))),100)","v":" Dunn"},"Melissa Dunn","9724 Kingston Pike Suite 204","Knoxville","TN",37922]
[{"$f":"MID(Table3[[#This Row],[Name]],FIND(\"/\", SUBSTITUTE(Table3[[#This Row],[Name]],\" \",\"/\", LEN(Table3[[#This Row],[Name]])-LEN(SUBSTITUTE(Table3[[#This Row],[Name]],\" \",\"\")))),100)","v":" Lermer"},"Michael & Barbara Lermer","5530 Turtle Crossing Loop","Tampa","FL",33625,null,null,null,{"$f":"MID(Table3[[#This Row],[Name]],FIND(\"/\", SUBSTITUTE(Table3[[#This Row],[Name]],\" \",\"/\", LEN(Table3[[#This Row],[Name]])-LEN(SUBSTITUTE(Table3[[#This Row],[Name]],\" \",\"\")))),100)","v":" Lermer"},"Michael & Barbara Lermer","5530 Turtle Crossing Loop","Tampa","FL",33625]
[{"$f":"MID(Table3[[#This Row],[Name]],FIND(\"/\", SUBSTITUTE(Table3[[#This Row],[Name]],\" \",\"/\", LEN(Table3[[#This Row],[Name]])-LEN(SUBSTITUTE(Table3[[#This Row],[Name]],\" \",\"\")))),100)","v":" Simonetta-Lee"},"Missy Simonetta-Lee","130 June Dr","Cocoa Beach","Fl",32931,null,null,null,{"$f":"MID(Table3[[#This Row],[Name]],FIND(\"/\", SUBSTITUTE(Table3[[#This Row],[Name]],\" \",\"/\", LEN(Table3[[#This Row],[Name]])-LEN(SUBSTITUTE(Table3[[#This Row],[Name]],\" \",\"\")))),100)","v":" Simonetta-Lee"},"Missy Simonetta-Lee","130 June Dr","Cocoa Beach","Fl",32931]
[{"$f":"MID(Table3[[#This Row],[Name]],FIND(\"/\", SUBSTITUTE(Table3[[#This Row],[Name]],\" \",\"/\", LEN(Table3[[#This Row],[Name]])-LEN(SUBSTITUTE(Table3[[#This Row],[Name]],\" \",\"\")))),100)","v":" Pelton"},"Rhiannon Pelton","4412 Brainerd Road","Chattanooga","TN",37411,null,null,null,{"$f":"MID(Table3[[#This Row],[Name]],FIND(\"/\", SUBSTITUTE(Table3[[#This Row],[Name]],\" \",\"/\", LEN(Table3[[#This Row],[Name]])-LEN(SUBSTITUTE(Table3[[#This Row],[Name]],\" \",\"\")))),100)","v":" Pelton"},"Rhiannon Pelton","4412 Brainerd Road","Chattanooga","TN",37411]
[{"$f":"MID(Table3[[#This Row],[Name]],FIND(\"/\", SUBSTITUTE(Table3[[#This Row],[Name]],\" \",\"/\", LEN(Table3[[#This Row],[Name]])-LEN(SUBSTITUTE(Table3[[#This Row],[Name]],\" \",\"\")))),100)","v":" Heredia"},"Stephanie Heredia","5706 S MacDill Ave Ste 104","Tampa","FL",33611,null,null,null,{"$f":"MID(Table3[[#This Row],[Name]],FIND(\"/\", SUBSTITUTE(Table3[[#This Row],[Name]],\" \",\"/\", LEN(Table3[[#This Row],[Name]])-LEN(SUBSTITUTE(Table3[[#This Row],[Name]],\" \",\"\")))),100)","v":" Heredia"},"Stephanie Heredia","5706 S MacDill Ave Ste 104","Tampa","FL",33611]
[{"$f":"MID(Table3[[#This Row],[Name]],FIND(\"/\", SUBSTITUTE(Table3[[#This Row],[Name]],\" \",\"/\", LEN(Table3[[#This Row],[Name]])-LEN(SUBSTITUTE(Table3[[#This Row],[Name]],\" \",\"\")))),100)","v":" Carico"},"Tracy Carico","609 W Lamar Alexander Pkwy","Maryville","TN",37801,null,null,null,{"$f":"MID(Table3[[#This Row],[Name]],FIND(\"/\", SUBSTITUTE(Table3[[#This Row],[Name]],\" \",\"/\", LEN(Table3[[#This Row],[Name]])-LEN(SUBSTITUTE(Table3[[#This Row],[Name]],\" \",\"\")))),100)","v":" Carico"},"Tracy Carico","609 W Lamar Alexander Pkwy","Maryville","TN",37801]
[{"$f":"MID(Table3[[#This Row],[Name]],FIND(\"/\", SUBSTITUTE(Table3[[#This Row],[Name]],\" \",\"/\", LEN(Table3[[#This Row],[Name]])-LEN(SUBSTITUTE(Table3[[#This Row],[Name]],\" \",\"\")))),100)","v":" Stone"},"David & Suzanne Stone","25115 Avenue Stanford, Suite 107","Valencia","CA",91355,null,null,null,{"$f":"MID(Table3[[#This Row],[Name]],FIND(\"/\", SUBSTITUTE(Table3[[#This Row],[Name]],\" \",\"/\", LEN(Table3[[#This Row],[Name]])-LEN(SUBSTITUTE(Table3[[#This Row],[Name]],\" \",\"\")))),100)","v":" Stone"},"David & Suzanne Stone","25115 Avenue Stanford, Suite 107","Valencia","CA",91355]
[{"$f":"MID(Table3[[#This Row],[Name]],FIND(\"/\", SUBSTITUTE(Table3[[#This Row],[Name]],\" \",\"/\", LEN(Table3[[#This Row],[Name]])-LEN(SUBSTITUTE(Table3[[#This Row],[Name]],\" \",\"\")))),100)","v":" Brugman"},"Lisa Brugman","1506 Hacienda Rd","La Habra Heights","CA","90631-8105",null,null,null,{"$f":"MID(Table3[[#This Row],[Name]],FIND(\"/\", SUBSTITUTE(Table3[[#This Row],[Name]],\" \",\"/\", LEN(Table3[[#This Row],[Name]])-LEN(SUBSTITUTE(Table3[[#This Row],[Name]],\" \",\"\")))),100)","v":" Brugman"},"Lisa Brugman","1506 Hacienda Rd","La Habra Heights","CA","90631-8105"]